Cogmind - Beta 13 @@@ ROGUE MODE // 2024.03.01 @ 17:01:58 Player: TheSlyFawkes Result: Self-destructed Performance ------------- Evolutions (2) 1000 Regions Visited (3) 600 Robots Destroyed (23) 115 Value Destroyed (484) 484 Prototype IDs (2) 40 Alien Tech Used (0) 0 Bonus (13) 13 TOTAL SCORE: 2252 Bonus ------- High Alert Combat Kills 13 Cogmind --------- Core Integrity 454/550 Matter 72/300 Energy 2/100 System Corruption 0% Temperature Cool (49) Movement Flying (28) Location -8/Materials Parts ------- > --- POWER (2) -------- (None) > --- PROPULSION (4) --- Flight Unit Flight Unit VTOL Module Cesium-ion Thruster > --- UTILITY (3) ------ Weight Redist. System Advanced Visual Processing Unit Hardlight Generator > --- WEAPON (2) ------- Light Assault Rifle Assault Cannon > --- INVENTORY (5) ---- ECM Suite Beam Rifle Peak State ------------ > --- POWER ------------ Light Ion Engine Light Ion Engine > --- PROPULSION ------- Flight Unit Flight Unit VTOL Module Cesium-ion Thruster > --- UTILITY ---------- Weight Redist. System Advanced Visual Processing Unit Hardlight Generator > --- WEAPON ----------- Light Assault Rifle Assault Cannon > --- INVENTORY -------- ECM Suite Beam Rifle Light Assault Rifle [Rating: 21] Favorites ----------- Power Light Ion Engine Engine Light Ion Engine Propulsion VTOL Module Wheel Compact Wheel Flight Unit VTOL Module Utility Signal Interpreter Device Sensor Array Storage Small Storage Unit Processor Signal Interpreter Weapon Light Assault Rifle Ballistic Gun Light Assault Rifle Ballistic Cannon Light Cannon Build | -11 -10 -9 -8 ------- Run | Yrd Mat Mat Mat Slots Evolved 4 | . . 2 2 Power 1 | . . 1 . Propulsion 2 | . . 1 1 Utility 1 | . . . 1 Weapon . | . . . . Parts Attached 44 | 5 21 6 12 Power 8 | 1 2 3 2 Engine 8 | 1 2 3 2 Core . | . . . . Reactor . | . . . . Propulsion 18 | 2 11 2 3 Treads . | . . . . Leg . | . . . . Wheel 8 | 2 6 . . Hover . | . . . . Flight 10 | . 5 2 3 Utility 11 | 1 4 1 5 Device 7 | . 2 1 4 Storage 1 | 1 . . . Processor 3 | . 2 . 1 Hackware . | . . . . Protection . | . . . . Artifact . | . . . . Weapon 7 | 1 4 . 2 Energy Gun . | . . . . Energy Cannon . | . . . . Ballistic Gun 4 | 1 2 . 1 Ballistic Cannon 3 | . 2 . 1 Launcher . | . . . . Special Weapon . | . . . . Impact Weapon . | . . . . Slashing Weapon . | . . . . Piercing Weapon . | . . . . Special Melee Weapon . | . . . . Unidentified Prototypes . | . . . . Parts Lost 11 | . 3 1 7 Power 6 | . 2 . 4 Propulsion 4 | . 1 1 2 Utility 1 | . . . 1 Weapon . | . . . . Highest Loss Streak 5 | . 2 1 5 To Critical Strikes . | . . . . Average Slot Usage (%) 92 | . 95 95 82 Engine 15 | . 12 20 16 Wheel 12 | . 21 . . Flight 16 | . 6 31 29 Device 8 | . 5 11 14 Storage 4 | . 8 . . Processor 11 | . 13 10 8 Ballistic Gun 15 | . 14 22 9 Ballistic Cannon 7 | . 11 . 5 Naked Turns . | . . . . Heaviest Build 17 | 10 13 11 17 Greatest Support 32 | 20 32 12 23 Greatest Overweight (x) . | . . . . Average Overweight (x) . | . . . . Largest Inventory Capacity 8 | 8 8 5 5 Average Capacity 6 | 6 6 5 5 Most Carried 7 | 3 7 5 5 Average Carried 4 | 1 4 4 3 Final Capacity 8 | 8 5 5 5 Final Carried 5 | 2 5 5 2 Class Distribution -------------------- 48% | Mutant 32% | Sprinter 12% | Scavenger-Sprinter 6% | Scavenger-Mutant Dominant Class ---------------- Mutant | -10/Materials Scavenger-Sprinter | -9/Materials Sprinter | -8/Materials Resources | -11 -10 -9 -8 ----------- Run | Yrd Mat Mat Mat Matter Collected 750 | 240 293 182 35 Remotely . | . . . . Salvage Created 495 | . 270 120 105 Parts 51 | . 25 15 11 Haulers Intercepted . | . . . . Recyclers Shooed 1 | . 1 . . Parts Field Recycled . | . . . . Retrieved Matter . | . . . . Parts Self-Destructed . | . . . . Prevented . | . . . . Kills | -11 -10 -9 -8 ------- Run | Yrd Mat Mat Mat Combat Hostiles Destroyed 20 | . 10 5 5 Guns 10 | . 4 5 1 Cannons 10 | . 6 . 4 Classes Destroyed 7 | . 5 . 2 Builder 1 | . 1 . . Operator 1 | . 1 . . Watcher 1 | . 1 . . Swarmer 12 | . 6 3 3 Grunt 6 | . 4 2 . Sentry 1 | . . . 1 Hunter 1 | . . . 1 Best Kill Streak 4 | . 4 3 2 Combat Bots Only 3 | . 3 3 2 Max Kills in Single Turn 2 | . 2 1 1 Gunslinging . | . . . . Exploded . | . . . . Melee . | . . . . Uniques/NPCs Destroyed . | . . . . Combat | -11 -10 -9 -8 -------- Run | Yrd Mat Mat Mat Hostile Shots Fired 181 | . 63 44 74 Missed 77 | . 22 23 32 Damage Taken 1153 | . 424 198 531 Core 225 | . 85 44 96 Absorbed by Shields 24 | . . . 24 Regen/Repaired (Parts) 52 | . 52 . . Core Remaining (%) 85 | 100 66 89 . Volleys Fired 90 | . 31 25 34 Largest 2 | . 2 2 2 Hottest 64 | . 55 43 64 Shots Fired 142 | . 62 27 53 Gun 92 | . 31 27 34 Cannon 50 | . 31 . 19 Launcher . | . . . . Special . | . . . . Kinetic 142 | . 62 27 53 Thermal . | . . . . Explosive . | . . . . Electromagnetic . | . . . . Robot Hit Streak 7 | . 6 7 6 Robot Miss Streak 6 | . 4 6 6 Penetration Max . | . . . . Secondary Targets . | . . . . Shots Hit Robots 79 | . 32 19 28 Core Hits 38 | . 15 8 15 Critical Kills . | . . . . Critical Parts Destroyed . | . . . . Critical Strikes . | . . . . Melee Attacks . | . . . . Impact . | . . . . Slashing . | . . . . Piercing . | . . . . Sneak Attacks . | . . . . Combat Hostiles . | . . . . Follow-up Attacks . | . . . . Damage Inflicted 1102 | . 552 169 381 Guns 584 | . 270 169 145 Cannons 506 | . 270 . 236 Explosions . | . . . . Melee . | . . . . Ramming 12 | . 12 . . Kinetic 1090 | . 540 169 381 Thermal . | . . . . Explosive . | . . . . Electromagnetic . | . . . . Impact . | . . . . Slashing . | . . . . Piercing . | . . . . Highest Corruption . | . . . . Average Corruption . | . . . . Corruption Purged . | . . . . Corruption Blocked . | . . . . Overload Shots . | . . . . Overflow Damage . | . . . . Projectiles . | . . . . Explosions . | . . . . Melee . | . . . . Knockbacks 5 | . 2 . 3 Impact . | . . . . Kinetic 5 | . 2 . 3 Secondary . | . . . . Self-Inflicted Damage 6 | . 6 . . Shots . | . . . . Rammed 1 | . 1 . . Targets Rammed 1 | . 1 . . Kicked . | . . . . Crushed . | . . . . Highest Temperature 126 | . 40 16 126 Average Temperature 34 | . 15 6 44 Received Heat Transfer 286 | . 126 30 130 Siege Activations . | . . . . Robots Corrupted . | . . . . Combat Hostiles . | . . . . Parts Fried . | . . . . Impact Corruptions . | . . . . Robots Melted . | . . . . Combat Hostiles . | . . . . Parts Melted . | . . . . Heat Transferred . | . . . . Parts Sabotaged . | . . . . Parts Stolen . | . . . . Parts Stripped . | . . . . Power Chain Reactions . | . . . . Alert | -11 -10 -9 -8 ------- Run | Yrd Mat Mat Mat Peak Influence 415 | . 224 336 415 Initial 141 | . . 41 141 Average 141 | . 97 203 239 Maximum Alert Level 2 | . 1 1 2 Low Security (%) 69 | 100 84 40 49 Level 1 29 | . 15 59 44 Level 2 . | . . . 5 Level 3 . | . . . . Level 4 . | . . . . Level 5 . | . . . . High Security . | . . . . Max Security . | . . . . Squads Dispatched 10 | . 2 4 4 Investigation 2 | . . 1 1 Extermination . | . . . . Reinforcement 6 | . 2 3 1 Assault . | . . . . Garrison 2 | . . . 2 Intercept . | . . . . Searches Triggered . | . . . . Construction Impeded . | . . . . Haulers Reinforced . | . . . . Active Scanning Responses . | . . . . Cargo Convoy Interrupts . | . . . . Stealth | -11 -10 -9 -8 --------- Run | Yrd Mat Mat Mat Distress Signals 3 | . . 1 2 Communications Jammed . | . . . . Distress Signals . | . . . . Times Spotted 51 | . 15 19 17 Peak Tracking Total 9 | . 3 7 9 Tactical Retreats 5 | . . 1 4 Traps | -11 -10 -9 -8 ------- Run | Yrd Mat Mat Mat Traps Triggered 2 | . . . 2 Indirectly . | . . . . Trap Hack Attempts . | . . . . Triggered . | . . . . Disarmed . | . . . . Reprogrammed . | . . . . Reused . | . . . . Traps Extracted . | . . . . Installed . | . . . . Triggered . | . . . . Machines | -11 -10 -9 -8 ---------- Run | Yrd Mat Mat Mat Machines Disabled 1 | . . . 1 Max in Single Turn 1 | . . . 1 Machines Repaired . | . . . . Machines Dismantled . | . . . . Machines Sabotaged . | . . . . Overloaded Fab Kills . | . . . . Hacking | -11 -10 -9 -8 --------- Run | Yrd Mat Mat Mat Machines Accessed 10 | . 4 3 3 Terminals 7 | . 3 2 2 Fabricators . | . . . . Repair Stations 2 | . 1 1 . Recycling Units . | . . . . Scanalyzers 1 | . . . 1 Garrison Access . | . . . . Total Hacks 27 | . 9 10 8 Successful 16 | . 6 5 5 Failed 11 | . 3 5 3 Catastrophic 3 | . 1 1 1 Database Lockouts . | . . . . Manual . | . . . . Terminals 18 | . 5 7 6 Fabricators . | . . . . Repair Stations 7 | . 4 3 . Recycling Units . | . . . . Scanalyzers 2 | . . . 2 Garrison Access . | . . . . Terminal Hacks 11 | . 4 4 3 Record 7 | . 2 2 3 Prototype ID Bank 1 | . 1 . . Alert Level 1 | . . 1 . Reinforcement Status 1 | . . 1 . Zone Layout 1 | . 1 . . Fabricator Hacks . | . . . . Repair Station Hacks 3 | . 2 1 . Scan Component 2 | . 1 1 . Repair 1 | . 1 . . Recycling Unit Hacks . | . . . . Scanalyzer 2 | . . . 2 Insert Component 1 | . . . 1 Analyze 1 | . . . 1 Garrison Access Hacks . | . . . . Unauthorized Hacks . | . . . . Terminals . | . . . . Fabricators . | . . . . Repair Stations . | . . . . Recycling Units . | . . . . Scanalyzers . | . . . . Garrison Access . | . . . . Data Cores Recovered . | . . . . Used . | . . . . Hacking Detections 10 | . 4 3 3 Full Trace Events 2 | . . 2 . Feedback Events . | . . . . Feedback Blocked . | . . . . Robot Schematics Acquired . | . . . . Robots Built . | . . . . Authchips . | . . . . Time . | . . . . Total Robot Build Rating . | . . . . Part Schematics Acquired 1 | . . . 1 Parts Built . | . . . . Authchips . | . . . . Time . | . . . . Total Part Build Rating . | . . . . Parts Repaired 1 | . 1 . . Time 26 | . 26 . . Parts Recycled . | . . . . Recycled Matter . | . . . . Retrieved Matter . | . . . . Retrieved Components . | . . . . Parts Scanalyzed 1 | . . . 1 Part Schematics Acquired 1 | . . . 1 Parts Damaged . | . . . . Bothacking | -11 -10 -9 -8 ------------ Run | Yrd Mat Mat Mat Used RIF Installer . | . . . . Robots Hacked . | . . . . Non-combat . | . . . . Combat . | . . . . Robot Hacks Applied . | . . . . Relay Couplers Released . | . . . . Fabnet Peak Effective % . | . . . . Robots Rewired . | . . . . Allies Hacked . | . . . . Hacks Repelled . | . . . . Allies | -11 -10 -9 -8 -------- Run | Yrd Mat Mat Mat Total Allies . | . . . . Largest Group . | . . . . Highest-Rated Group . | . . . . Highest-Rated Ally . | . . . . Total Orders . | . . . . Ally Attacks . | . . . . Total Damage . | . . . . Kills . | . . . . Allies Corrupted . | . . . . Allies Melted . | . . . . Intel | -11 -10 -9 -8 ------- Run | Yrd Mat Mat Mat Robot Analysis Total . | . . . . Derelict Logs Recovered . | . . . . Drone Launches . | . . . . Drone Recoveries . | . . . . Exploration | -11 -10 -9 -8 ------------- Run | Yrd Mat Mat Mat Turns Passed 1020 | 47 565 236 172 Spaces Moved 1424 | 54 602 530 238 Core 26 | 26 . . . Treads . | . . . . Legs . | . . . . Wheels 352 | 28 324 . . Hover . | . . . . Flight 1046 | . 278 530 238 Fastest Speed 28 | 50 32 29 28 Average Speed 46 | 65 67 29 29 Slowest Speed 100 | 80 100 32 32 Overloaded Moves . | . . . . Propulsion Burnouts . | . . . . Robots Hopped 17 | . 1 8 8 Cave-ins Triggered . | . . . . Exploration Rate (%) 39 | 3 78 54 23 Regions Visited 3 Branch Regions . Pre-discovered Areas . | . . . . Known Exits Taken 2 | . 1 1 . Unknown Exits Taken 1 | 1 . . . Scrap Searched . | . . . . Spaces Dug . | . . . . Terrain Destroyed 2 | . . . 2 Melee . | . . . . Projectile 2 | . . . 2 AOE . | . . . . Terrain Rammed . | . . . . Walls Destroyed . | . . . . Machines Disabled . | . . . . Actions | -11 -10 -9 -8 --------- Run | Yrd Mat Mat Mat Total 1628 | 65 697 579 287 Wait 28 | . 11 17 . Move 1388 | 53 599 514 222 Hop 16 | . 1 7 8 Pick Up 39 | 7 20 5 7 Fast Attach 3 | . 1 2 . Attach 32 | 5 13 2 12 Detach 4 | . 2 . 2 Swap 9 | . 7 2 . Drop 18 | . 11 5 2 Fire 90 | . 31 25 34 Melee . | . . . . Ram 1 | . 1 . . Kick . | . . . . Crush . | . . . . Escape Stasis . | . . . . Rewire . | . . . . Trap . | . . . . Miscellaneous . | . . . . Route ------- -11/Scrapyard -10/Materials (discovered 4 exits: *Mat x2 / *Min x2) -9/Materials (discovered 2 exits: *Mat x2) -8/Materials History --------- Turn | Location | Event 12 | -11/Scrapyard | Discovered new exit (range 15) 48 | -11/Scrapyard | Entered Materials 217 | -10/Materials | Discovered new exit (range 10) 259 | -10/Materials | Discovered new exit (range 9) 270 | -10/Materials | Identified exit to Materials 315 | -10/Materials | Build established: Mutant 320 | -10/Materials | Identified exit to Mines 514 | -10/Materials | Discovered exit to Mines (range 15) 565 | -10/Materials | Discovered exit to Materials (range 15) 611 | -10/Materials | Repaired Lgt. Cannon? 613 | -10/Materials | Entered another Materials area 613 | -9/Materials | Evolved 2 slots: Power x1, Propulsion x1 797 | -9/Materials | Discovered new exit (range 10) 799 | -9/Materials | Identified exit to Materials 821 | -9/Materials | Discovered exit to Materials (range 11) 849 | -9/Materials | Entered another Materials area 849 | -8/Materials | Evolved 2 slots: Propulsion x1, Utility x1 914 | -8/Materials | Garrison activated, responded to threat 995 | -8/Materials | Lost 5 parts (2p2n1u) 1021 | -8/Materials | Self-destructed Last Messages --------------- Acquired 15 matter. U-05 Engineer lays Concrete. K-01 Serf collects debris. U-05 Engineer lays Concrete. R-06 Scavenger collects Flight Unit. Acquired Lgt. Assault Rifle. W-25 Informer destroyed. K-01 Serf collects debris. Acquired 6 matter. R-06 Scavenger collects Imp. Hover Unit. Acquired 3 matter. Acquired Hardlight Generator. Dropped Lgt. Assault Rifle. Terminal disabled. S-10 Pest destroyed. Acquired 11 matter. Slug penetrates Terminal. Slug penetrates Wall. Lgt. Ion Engine destroyed. H-55 Commando destroyed. Map ----- +----------------------------------------------------+ | ?# """ #?# # # # | | ?# """ !#?# # """ " # | | ?# #?# ## """ = ! # | | ?# ! ]### ## """ ###### | | ?####+### ## ! #????? | | ????# T ## !%#????? | | ????# ### ###########!!#????? | | ????# #?#####?????????## #????? | | ????# #????????????????# #????? | | ????# #??########??????#=#????? | | ????# #??# #??????# #????? | | ##### #??# """ #??????# #????? | | # #??# """ #??????# #????? | | "" # #??#[ """ #??????# #????? | | "" # #??# ####???# #????? | | "" # #??# # #???# #????? | | # ######+#### ###### #????? | | "" # # #????? | | "" + [ # #????? | | "" # # #????? | | [########+####### # ###### | | "" #????# #??# # # # | | "" !#????#"S #??##### # # | | "" #????#""" #??????#g#! # | | #????# "" #??????#g# [# | | ####?????# #??????#=@ # | | ?????????# #??????### # | | ?????????########????????#" # | | ?????????????????????????#"" # | | ?????????????????????????# # | | ?????????????????????????###### | | | | | | | | | | | | | | | | | | | | | | | | | | | | | | | | | | | | | | | +----------------------------------------------------+ Best States ------------- Heat Dissipation 35 Energy Generation 15 Energy Capacity 150 Matter Stores 300 Matter Capacity 300 Sight Range 20 Robot Scan Range 14 Terrain Scan Density 10 Additional Mass Support 6 Evasion (%) 72 Item Schematics ----------------- Flight Unit | -8/Materials | Scanalyzed Robot Schematics ------------------ None Fabricated ------------ Nothing Alien Tech Used ----------------- None Achievements -------------- None Challenges ------------ None Game ------ Seed ProcessingShrapnelPrototype Manual? 0 Play Time 00:34:57 Cumulative 29.9 hours Start 2024.03.01 @ 16:19:50 End 2024.03.01 @ 17:01:58 Sessions 1 Manual Loads 0 Difficulty Rogue Special Mode None Game No. 44 Rogue 43 Adventurer 1 Explorer 0 Win Type - Total 0 Types 0/0/0/0/0/0/0/0/0 Lore% 19 Gallery% 22 Achievement% 26 Wizard Run 0 Options --------- Layout 1 ASCII 0 Keyboard 0 Movement Mouse Keybinds 0 Fullscreen 1 Font 24/Smallcaps Map View 50x35 Zoom Use 1% Tactical HUD 0 Map Filters NONE Filters NONE Steam 1 RUN: 13367377-d014-4087-85f4-828520781952